[Event "Open NK Rapid 2025 bord 26-50"]
[Site "Helmond, Netherlands"]
[Date "2025.05.03"]
[Round "7.2"]
[White "Klein, Ron"]
[Black "Timmer, Michel"]
[Result "1-0"]
[TimeControl "15 min +5 sec increment"]
[WhiteFideId "1014668"]
[BlackFideId "40104524"]
[WhiteElo "2014"]
[BlackElo "1796"]

1. d4 {[%clk 00:15:07]} {[%emt 00:00:02]} Nf6 {[%clk 00:15:09]} {[%emt
00:00:02]} 2. Nf3 {[%clk 00:15:09]} {[%emt 00:00:03]} g6 {[%clk 00:15:12]}
{[%emt 00:00:02]} 3. Bg5 {[%clk 00:15:12]} {[%emt 00:00:02]} Bg7 {[%clk
00:15:13]} {[%emt 00:00:04]} 4. e3 {[%clk 00:15:14]} {[%emt 00:00:03]} c5
{[%clk 00:15:16]} {[%emt 00:00:02]} 5. c3 {[%clk 00:15:16]} {[%emt 00:00:04]}
cxd4 {[%clk 00:14:49]} {[%emt 00:00:31]} 6. exd4 {[%clk 00:15:18]} {[%emt
00:00:02]} h6 {[%clk 00:14:43]} {[%emt 00:00:12]} 7. Bh4 {[%clk 00:15:20]}
{[%emt 00:00:03]} d6 {[%clk 00:14:41]} {[%emt 00:00:07]} 8. Be2 {[%clk
00:15:13]} {[%emt 00:00:12]} Nc6 {[%clk 00:14:32]} {[%emt 00:00:14]} 9. O-O
{[%clk 00:15:09]} {[%emt 00:00:09]} O-O {[%clk 00:14:28]} {[%emt 00:00:09]} 10.
Nbd2 {[%clk 00:14:54]} {[%emt 00:00:20]} Qb6 {[%clk 00:13:51]} {[%emt
00:00:42]} 11. Qb3 {[%clk 00:14:36]} {[%emt 00:00:23]} Be6 {[%clk 00:13:06]}
{[%emt 00:00:50]} 12. Bc4 {[%clk 00:13:58]} {[%emt 00:00:42]} Qxb3 {[%clk
00:11:11]} {[%emt 00:02:00]} 13. axb3 {[%clk 00:13:50]} {[%emt 00:00:13]} d5
{[%clk 00:10:29]} {[%emt 00:00:48]} 14. Bd3 {[%clk 00:13:40]} {[%emt 00:00:14]}
a6 {[%clk 00:10:22]} {[%emt 00:00:13]} 15. b4 {[%clk 00:13:37]} {[%emt
00:00:07]} Bd7 {[%clk 00:10:02]} {[%emt 00:00:25]} 16. Rfe1 {[%clk 00:12:57]}
{[%emt 00:00:46]} e6 {[%clk 00:09:23]} {[%emt 00:00:44]} 17. Nb3 {[%clk
00:12:54]} {[%emt 00:00:08]} Na7 {[%clk 00:08:16]} {[%emt 00:01:11]} 18. Nc5
{[%clk 00:12:50]} {[%emt 00:00:09]} Bc6 {[%clk 00:07:55]} {[%emt 00:00:27]} 19.
Ne5 {[%clk 00:12:47]} {[%emt 00:00:07]} Nb5 {[%clk 00:06:41]} {[%emt 00:01:20]}
20. Nxc6 {[%clk 00:12:37]} {[%emt 00:00:14]} bxc6 {[%clk 00:06:42]} {[%emt
00:00:04]} 21. Nxa6 {[%clk 00:12:32]} {[%emt 00:00:10]} Nd7 {[%clk 00:06:25]}
{[%emt 00:00:23]} 22. Bxb5 {[%clk 00:11:56]} {[%emt 00:00:42]} cxb5 {[%clk
00:06:27]} {[%emt 00:00:02]} 23. Nc7 {[%clk 00:11:56]} {[%emt 00:00:04]} Rab8
{[%clk 00:05:42]} {[%emt 00:00:51]} 24. Be7 {[%clk 00:11:54]} {[%emt 00:00:06]}
Rfc8 {[%clk 00:05:38]} {[%emt 00:00:09]} 25. Ra7 {[%clk 00:11:27]} {[%emt
00:00:32]} Nb6 {[%clk 00:05:32]} {[%emt 00:00:11]} 26. Nxb5 {[%clk 00:11:14]}
{[%emt 00:00:19]} Nc4 {[%clk 00:05:26]} {[%emt 00:00:11]} 27. Nd6 {[%clk
00:10:59]} {[%emt 00:00:20]} Nxb2 {[%clk 00:05:01]} {[%emt 00:00:31]} 28. Nxc8
{[%clk 00:10:59]} {[%emt 00:00:04]} Rxc8 {[%clk 00:05:03]} {[%emt 00:00:02]} 29.
Bc5 {[%clk 00:10:52]} {[%emt 00:00:12]} Rb8 {[%clk 00:04:20]} {[%emt 00:00:48]}
30. Rea1 {[%clk 00:10:50]} {[%emt 00:00:07]} Kh7 {[%clk 00:04:12]} {[%emt
00:00:14]} 31. Rxf7 {[%emt 00:00:28]} 1-0

[Event "Open NK Rapid 2025 bord 26-50"]
[Site "Helmond, Netherlands"]
[Date "2025.05.03"]
[Round "7.3"]
[White "Kryshtopa, Dmytro"]
[Black "Vogel, Jaap"]
[Result "0-1"]
[TimeControl "15 min +5 sec increment"]
[WhiteFideId "34160876"]
[BlackFideId "1000764"]
[WhiteElo "1791"]
[BlackElo "2006"]

1. e4 {[%clk 00:12:49]} {[%emt 00:02:21]} e6 {[%clk 00:15:09]} {[%emt
00:00:02]} 2. Nf3 {[%clk 00:12:36]} {[%emt 00:00:18]} d5 {[%clk 00:15:11]}
{[%emt 00:00:03]} 3. Nc3 {[%clk 00:12:40]} Nf6 {[%clk 00:14:59]} {[%emt
00:00:17]} 4. e5 {[%clk 00:12:40]} {[%emt 00:00:05]} Nfd7 {[%clk 00:15:03]} 5.
d4 {[%clk 00:12:33]} {[%emt 00:00:12]} b6 {[%clk 00:15:07]} {[%emt 00:00:01]} 6.
Ne2 {[%clk 00:11:40]} {[%emt 00:00:58]} Ba6 {[%clk 00:15:08]} {[%emt 00:00:04]}
7. Ng3 {[%clk 00:11:31]} {[%emt 00:00:14]} Bxf1 {[%clk 00:14:59]} {[%emt
00:00:14]} 8. Nxf1 {[%clk 00:11:33]} {[%emt 00:00:04]} Qc8 {[%clk 00:14:44]}
{[%emt 00:00:20]} 9. h4 {[%clk 00:10:49]} {[%emt 00:00:48]} h6 {[%clk
00:14:37]} {[%emt 00:00:12]} 10. Ng3 {[%clk 00:10:39]} {[%emt 00:00:15]} Qa6
{[%clk 00:14:31]} {[%emt 00:00:10]} 11. c3 {[%clk 00:10:20]} {[%emt 00:00:25]}
c5 {[%clk 00:14:33]} {[%emt 00:00:03]} 12. Nh5 {[%clk 00:10:13]} {[%emt
00:00:11]} Nc6 {[%clk 00:14:34]} {[%emt 00:00:05]} 13. Nf4 {[%clk 00:10:12]}
{[%emt 00:00:06]} Rc8 {[%clk 00:13:53]} {[%emt 00:00:46]} 14. a3 {[%clk
00:09:38]} {[%emt 00:00:39]} Be7 {[%clk 00:11:11]} {[%emt 00:02:47]} 15. Be3
{[%clk 00:09:19]} {[%emt 00:00:25]} Rg8 {[%clk 00:11:05]} {[%emt 00:00:11]} 16.
Qb1 {[%clk 00:09:01]} {[%emt 00:00:22]} Rh8 {[%clk 00:09:31]} {[%emt 00:01:39]}
17. Nh5 {[%clk 00:08:00]} {[%emt 00:01:06]} Bf8 {[%clk 00:09:33]} {[%emt
00:00:03]} 18. Rh3 {[%clk 00:07:42]} {[%emt 00:00:24]} g6 {[%clk 00:09:34]}
{[%emt 00:00:04]} 19. Nf4 {[%clk 00:07:29]} {[%emt 00:00:17]} Rg8 {[%clk
00:09:12]} {[%emt 00:00:26]} 20. Nh2 {[%clk 00:05:41]} {[%emt 00:01:54]} Ne7
{[%clk 00:08:13]} {[%emt 00:01:04]} 21. g4 {[%clk 00:05:25]} {[%emt 00:00:20]}
cxd4 {[%clk 00:07:25]} {[%emt 00:00:54]} 22. cxd4 {[%clk 00:05:25]} {[%emt
00:00:06]} Qc4 {[%clk 00:06:20]} {[%emt 00:01:09]} 23. h5 {[%clk 00:04:30]}
{[%emt 00:00:59]} g5 {[%clk 00:05:34]} {[%emt 00:00:51]} 24. Nd3 {[%clk
00:04:05]} {[%emt 00:00:31]} Qc2 {[%clk 00:03:48]} {[%emt 00:01:51]} 25. Qxc2
{[%clk 00:03:57]} {[%emt 00:00:13]} Rxc2 {[%clk 00:03:52]} 26. Kd1 {[%clk
00:03:59]} {[%emt 00:00:03]} Rc4 {[%clk 00:03:47]} {[%emt 00:00:10]} 27. Rc1
{[%clk 00:03:43]} {[%emt 00:00:21]} b5 {[%clk 00:03:17]} {[%emt 00:00:36]} 28.
b3 {[%clk 00:03:26]} {[%emt 00:00:22]} Rxc1+ {[%clk 00:03:16]} {[%emt
00:00:06]} 29. Kxc1 {[%clk 00:03:23]} {[%emt 00:00:08]} Nc6 {[%clk 00:03:16]}
{[%emt 00:00:04]} 30. f4 {[%clk 00:02:53]} {[%emt 00:00:35]} Bxa3+ {[%clk
00:03:18]} {[%emt 00:00:04]} 31. Kd1 {[%clk 00:02:45]} {[%emt 00:00:13]} gxf4
{[%clk 00:03:05]} {[%emt 00:00:17]} 32. Bxf4 {[%clk 00:02:48]} {[%emt
00:00:02]} Bf8 {[%clk 00:03:09]} {[%emt 00:00:01]} 33. Nf3 {[%clk 00:02:47]}
{[%emt 00:00:06]} Rxg4 {[%clk 00:03:10]} {[%emt 00:00:04]} 34. Rh2 {[%clk
00:02:15]} {[%emt 00:00:37]} Nb4 {[%clk 00:02:48]} {[%emt 00:00:27]} 35. Nxb4
{[%clk 00:00:37]} {[%emt 00:01:43]} Rxf4 {[%clk 00:02:51]} {[%emt 00:00:02]} 36.
Rc2 {[%clk 00:00:21]} {[%emt 00:00:22]} Bxb4 {[%clk 00:02:46]} {[%emt
00:00:09]} 37. Rc8+ {[%clk 00:00:11]} {[%emt 00:00:15]} Ke7 {[%clk 00:02:50]}
38. Ng5 {[%clk 00:00:00]} {[%emt 00:00:11]} 0-1

[Event "Open NK Rapid 2025 bord 26-50"]
[Site "Helmond, Netherlands"]
[Date "2025.05.03"]
[Round "7.4"]
[White "Den Heijer, Rolinde"]
[Black "Zhang, Xiheng"]
[Result "0-1"]
[TimeControl "15 min +5 sec increment"]
[WhiteFideId "1068300"]
[BlackFideId "40102386"]
[WhiteElo "1991"]
[BlackElo "1778"]

1. e4 {[%clk 00:14:10]} {[%emt 00:01:00]} c5 {[%clk 00:15:09]} {[%emt
00:00:02]} 2. Nf3 {[%clk 00:14:13]} {[%emt 00:00:02]} e6 {[%clk 00:15:13]}
{[%emt 00:00:01]} 3. d4 {[%clk 00:14:17]} {[%emt 00:00:01]} cxd4 {[%clk
00:15:16]} {[%emt 00:00:02]} 4. Nxd4 {[%clk 00:14:20]} {[%emt 00:00:01]} Nf6
{[%clk 00:15:20]} {[%emt 00:00:02]} 5. Nc3 {[%clk 00:14:24]} {[%emt 00:00:01]}
Nc6 {[%clk 00:15:23]} {[%emt 00:00:02]} 6. Ndb5 {[%clk 00:14:24]} {[%emt
00:00:05]} Bb4 {[%clk 00:15:24]} {[%emt 00:00:04]} 7. a3 {[%clk 00:14:26]}
{[%emt 00:00:03]} Bxc3+ {[%clk 00:15:26]} {[%emt 00:00:02]} 8. Nxc3 {[%clk
00:14:30]} {[%emt 00:00:02]} d5 {[%clk 00:15:30]} {[%emt 00:00:01]} 9. exd5
{[%clk 00:14:24]} {[%emt 00:00:11]} exd5 {[%clk 00:15:33]} {[%emt 00:00:01]} 10.
Bd3 {[%clk 00:14:09]} {[%emt 00:00:20]} O-O {[%clk 00:15:31]} {[%emt 00:00:07]}
11. O-O {[%clk 00:14:11]} {[%emt 00:00:04]} Bg4 {[%clk 00:15:31]} {[%emt
00:00:05]} 12. f3 {[%clk 00:14:02]} {[%emt 00:00:14]} Bh5 {[%clk 00:15:34]}
{[%emt 00:00:01]} 13. Kh1 {[%clk 00:14:02]} {[%emt 00:00:05]} d4 {[%clk
00:14:04]} {[%emt 00:01:35]} 14. Ne4 {[%clk 00:13:14]} {[%emt 00:00:53]} Nxe4
{[%clk 00:13:55]} {[%emt 00:00:15]} 15. Bxe4 {[%clk 00:13:17]} {[%emt
00:00:02]} Re8 {[%clk 00:12:41]} {[%emt 00:01:19]} 16. Bf4 {[%clk 00:12:53]}
{[%emt 00:00:27]} Rxe4 {[%clk 00:12:37]} {[%emt 00:00:11]} 17. Qd2 {[%clk
00:12:30]} {[%emt 00:00:28]} Re6 {[%clk 00:12:25]} {[%emt 00:00:16]} 18. Rad1
{[%clk 00:12:08]} {[%emt 00:00:27]} Qb6 {[%clk 00:11:39]} {[%emt 00:00:51]} 19.
b3 {[%clk 00:12:07]} {[%emt 00:00:07]} Rae8 {[%clk 00:11:25]} {[%emt 00:00:18]}
20. Rf2 {[%clk 00:11:36]} {[%emt 00:00:36]} Qa5 {[%clk 00:10:59]} {[%emt
00:00:32]} 21. b4 {[%clk 00:11:23]} {[%emt 00:00:18]} Qb5 {[%clk 00:10:30]}
{[%emt 00:00:34]} 22. Bg3 {[%clk 00:10:27]} {[%emt 00:01:01]} h6 {[%clk
00:09:26]} {[%emt 00:01:09]} 23. h3 {[%clk 00:10:19]} {[%emt 00:00:13]} Re2
{[%clk 00:09:11]} {[%emt 00:00:21]} 24. Rxe2 {[%clk 00:10:14]} {[%emt
00:00:08]} Qxe2 {[%clk 00:09:06]} {[%emt 00:00:11]} 25. Qc1 {[%clk 00:10:17]}
{[%emt 00:00:02]} Qe3 {[%clk 00:08:30]} {[%emt 00:00:41]} 26. Qa1 {[%clk
00:10:07]} {[%emt 00:00:15]} Qg5 {[%clk 00:08:17]} {[%emt 00:00:18]} 27. Kh2
{[%clk 00:09:46]} {[%emt 00:00:25]} Re2 {[%clk 00:07:57]} {[%emt 00:00:25]} 28.
f4 {[%clk 00:09:34]} {[%emt 00:00:17]} Qd5 {[%clk 00:07:51]} {[%emt 00:00:12]}
29. Rg1 {[%clk 00:09:32]} {[%emt 00:00:07]} Ne7 {[%clk 00:07:28]} {[%emt
00:00:29]} 30. c4 {[%clk 00:09:17]} {[%emt 00:00:19]} Qe4 {[%clk 00:07:08]}
{[%emt 00:00:24]} 31. Qf1 {[%clk 00:08:55]} {[%emt 00:00:28]} Nf5 {[%clk
00:07:00]} {[%emt 00:00:14]} 32. Bh4 {[%clk 00:08:54]} {[%emt 00:00:05]} Nxh4
{[%clk 00:06:59]} {[%emt 00:00:05]} 0-1

[Event "Open NK Rapid 2025 bord 26-50"]
[Site "Helmond, Netherlands"]
[Date "2025.05.03"]
[Round "7.5"]
[White "Cakmak, Metehan Tugra"]
[Black "Apon, Iwahn"]
[Result "1/2-1/2"]
[TimeControl "15 min +5 sec increment"]
[WhiteFideId "44583885"]
[BlackFideId "1056115"]
[WhiteElo "1787"]
[BlackElo "1987"]

1. e4 {[%clk 00:15:07]} {[%emt 00:00:01]} d6 {[%clk 00:15:08]} {[%emt
00:00:02]} 2. d4 {[%clk 00:15:11]} {[%emt 00:00:02]} Nf6 {[%clk 00:15:12]}
{[%emt 00:00:01]} 3. Bd3 {[%clk 00:15:12]} {[%emt 00:00:04]} e5 {[%clk
00:15:14]} {[%emt 00:00:03]} 4. d5 {[%clk 00:15:10]} {[%emt 00:00:08]} Be7
{[%clk 00:15:14]} {[%emt 00:00:04]} 5. c4 {[%clk 00:15:06]} {[%emt 00:00:09]}
a5 {[%clk 00:15:11]} {[%emt 00:00:08]} 6. Nc3 {[%clk 00:15:02]} {[%emt
00:00:09]} Nbd7 {[%clk 00:14:02]} {[%emt 00:01:14]} 7. Nge2 {[%clk 00:14:45]}
{[%emt 00:00:22]} Nc5 {[%clk 00:13:45]} {[%emt 00:00:23]} 8. Bc2 {[%clk
00:14:48]} {[%emt 00:00:02]} O-O {[%clk 00:12:38]} {[%emt 00:01:11]} 9. O-O
{[%clk 00:14:40]} {[%emt 00:00:13]} g6 {[%clk 00:09:43]} {[%emt 00:03:00]} 10.
f4 {[%clk 00:14:10]} {[%emt 00:00:35]} exf4 {[%clk 00:09:18]} {[%emt 00:00:30]}
11. Bxf4 {[%clk 00:13:54]} {[%emt 00:00:21]} Nh5 {[%clk 00:08:55]} {[%emt
00:00:28]} 12. Be3 {[%clk 00:12:56]} {[%emt 00:01:03]} b6 {[%clk 00:07:24]}
{[%emt 00:01:36]} 13. Qd2 {[%clk 00:12:43]} {[%emt 00:00:18]} Bf6 {[%clk
00:06:06]} {[%emt 00:01:22]} 14. Bd4 {[%clk 00:11:53]} {[%emt 00:00:56]} Be5
{[%clk 00:05:12]} {[%emt 00:00:59]} 15. Rae1 {[%clk 00:10:12]} {[%emt
00:01:46]} Qh4 {[%clk 00:04:49]} {[%emt 00:00:28]} 16. Bxe5 {[%clk 00:10:15]}
{[%emt 00:00:02]} dxe5 {[%clk 00:04:48]} {[%emt 00:00:06]} 17. Nb5 {[%clk
00:09:09]} {[%emt 00:01:11]} Qe7 {[%clk 00:03:36]} {[%emt 00:01:17]} 18. b3
{[%clk 00:08:37]} {[%emt 00:00:38]} Ng7 {[%clk 00:02:54]} {[%emt 00:00:46]} 19.
Ng3 {[%clk 00:07:42]} {[%emt 00:01:00]} Ne8 {[%clk 00:02:56]} {[%emt 00:00:03]}
20. Rf2 {[%clk 00:06:57]} {[%emt 00:00:50]} Nd6 {[%clk 00:02:58]} {[%emt
00:00:03]} 21. Nxd6 {[%clk 00:06:56]} {[%emt 00:00:07]} cxd6 {[%clk 00:03:01]}
{[%emt 00:00:01]} 22. Ref1 {[%clk 00:06:57]} {[%emt 00:00:04]} Ra7 {[%clk
00:02:51]} {[%emt 00:00:15]} 23. Rf6 {[%clk 00:06:49]} {[%emt 00:00:14]} Nd7
{[%clk 00:02:30]} {[%emt 00:00:25]} 24. R6f3 {[%clk 00:06:45]} {[%emt
00:00:07]} f6 {[%clk 00:02:29]} {[%emt 00:00:09]} 25. Qf2 {[%clk 00:05:38]}
{[%emt 00:01:12]} Kg7 {[%clk 00:02:09]} {[%emt 00:00:24]} 26. h4 {[%clk
00:05:24]} {[%emt 00:00:19]} Nc5 {[%clk 00:01:38]} {[%emt 00:00:37]} 27. Qe3
{[%clk 00:05:12]} {[%emt 00:00:15]} Bg4 {[%clk 00:01:41]} {[%emt 00:00:03]} 28.
R3f2 {[%clk 00:05:16]} {[%emt 00:00:02]} h5 {[%clk 00:01:39]} {[%emt 00:00:06]}
29. Bd1 {[%clk 00:05:10]} {[%emt 00:00:11]} Bxd1 {[%clk 00:01:22]} {[%emt
00:00:23]} 30. Rxd1 {[%clk 00:05:14]} {[%emt 00:00:01]} Qd7 {[%clk 00:01:07]}
{[%emt 00:00:19]} 31. Rdf1 {[%clk 00:05:07]} {[%emt 00:00:12]} Qg4 {[%clk
00:01:11]} {[%emt 00:00:02]} 32. Rf3 {[%clk 00:03:47]} {[%emt 00:01:24]} Rd7
{[%clk 00:00:25]} {[%emt 00:00:51]} 33. Qf2 {[%clk 00:03:50]} {[%emt 00:00:02]}
Rdf7 {[%clk 00:00:25]} {[%emt 00:00:05]} 34. Rb1 {[%clk 00:03:35]} {[%emt
00:00:20]} Nxe4 {[%clk 00:00:27]} {[%emt 00:00:03]} 35. Nxe4 {[%clk 00:03:33]}
{[%emt 00:00:07]} Qxe4 {[%emt 00:00:02]} 36. Re1 {[%clk 00:03:33]} {[%emt
00:00:04]} Qg4 {[%clk 00:00:34]} {[%emt 00:00:02]} 37. Rg3 {[%clk 00:03:28]}
{[%emt 00:00:10]} Qd4 {[%clk 00:00:34]} {[%emt 00:00:04]} 38. Qxd4 {[%clk
00:03:08]} {[%emt 00:00:25]} exd4 {[%clk 00:00:38]} {[%emt 00:00:02]} 39. Rd1
{[%clk 00:03:12]} Re8 {[%clk 00:00:41]} {[%emt 00:00:03]} 40. Rgd3 {[%clk
00:03:07]} {[%emt 00:00:10]} Re2 {[%clk 00:00:40]} {[%emt 00:00:05]} 41. R1d2
{[%clk 00:03:09]} {[%emt 00:00:03]} Rfe7 {[%clk 00:00:40]} {[%emt 00:00:05]} 42.
Rxd4 {[%clk 00:03:12]} {[%emt 00:00:02]} Re1+ {[%clk 00:00:41]} {[%emt
00:00:04]} 43. Kf2 {[%clk 00:03:12]} {[%emt 00:00:05]} R1e4 {[%clk 00:00:36]}
{[%emt 00:00:10]} 44. Kf3 {[%clk 00:03:01]} {[%emt 00:00:16]} Re1 {[%clk
00:00:38]} {[%emt 00:00:04]} 45. Kf2 {[%clk 00:02:42]} {[%emt 00:00:24]} f5
{[%clk 00:00:39]} {[%emt 00:00:03]} 46. g3 {[%clk 00:02:32]} {[%emt 00:00:15]}
Kf6 {[%clk 00:00:40]} {[%emt 00:00:04]} 47. Kf3 {[%clk 00:02:20]} {[%emt
00:00:18]} Rf1+ {[%clk 00:00:42]} {[%emt 00:00:02]} 48. Kg2 {[%clk 00:02:23]}
{[%emt 00:00:02]} Ree1 {[%clk 00:00:45]} {[%emt 00:00:02]} 49. Rf4 {[%clk
00:01:59]} {[%emt 00:00:29]} Rg1+ {[%clk 00:00:44]} {[%emt 00:00:07]} 50. Kh3
{[%clk 00:01:55]} {[%emt 00:00:08]} Rh1+ {[%clk 00:00:46]} {[%emt 00:00:03]} 51.
Kg2 {[%clk 00:01:59]} {[%emt 00:00:01]} Reg1+ {[%clk 00:00:50]} {[%emt
00:00:02]} 52. Kf3 {[%clk 00:01:57]} {[%emt 00:00:02]} Rf1+ {[%clk 00:00:40]}
{[%emt 00:00:19]} 53. Kg2 {[%clk 00:01:57]} {[%emt 00:00:05]} Rhg1+ {[%clk
00:00:39]} {[%emt 00:00:07]} 54. Kh3 {[%clk 00:01:57]} {[%emt 00:00:05]} Rxf4
{[%clk 00:00:42]} {[%emt 00:00:01]} 55. gxf4 {[%clk 00:02:01]} Re1 {[%clk
00:00:37]} {[%emt 00:00:10]} 56. Kg2 {[%clk 00:01:54]} {[%emt 00:00:11]} Re4
{[%clk 00:00:41]} {[%emt 00:00:03]} 57. Kf3 {[%clk 00:01:57]} {[%emt 00:00:02]}
Re1 {[%clk 00:15:05]} {[%emt 00:00:30]} 1/2-1/2

[Event "Open NK Rapid 2025 bord 26-50"]
[Site "Helmond, Netherlands"]
[Date "2025.05.03"]
[Round "7.6"]
[White "Blijlevens, Pim"]
[Black "Rohatgi, Kushagra"]
[Result "1-0"]
[TimeControl "15 min +5 sec increment"]
[WhiteFideId "1022997"]
[BlackFideId "34603212"]
[WhiteElo "1969"]
[BlackElo "1774"]

1. f4 {[%clk 00:14:41]} {[%emt 00:00:28]} d5 {[%clk 00:15:05]} {[%emt
00:00:05]} 2. Nf3 {[%clk 00:14:44]} {[%emt 00:00:02]} Nf6 {[%clk 00:15:03]}
{[%emt 00:00:08]} 3. e3 {[%clk 00:14:47]} {[%emt 00:00:02]} c5 {[%clk
00:14:56]} {[%emt 00:00:12]} 4. Bb5+ {[%clk 00:14:48]} {[%emt 00:00:03]} Bd7
{[%clk 00:14:58]} {[%emt 00:00:03]} 5. Qe2 {[%clk 00:14:51]} {[%emt 00:00:02]}
Bxb5 {[%clk 00:14:50]} {[%emt 00:00:15]} 6. Qxb5+ {[%clk 00:14:53]} {[%emt
00:00:02]} Qd7 {[%clk 00:14:53]} {[%emt 00:00:02]} 7. Qxc5 {[%clk 00:14:17]}
{[%emt 00:00:41]} e5 {[%clk 00:13:43]} {[%emt 00:01:14]} 8. Qc3 {[%clk
00:14:20]} {[%emt 00:00:02]} exf4 {[%clk 00:13:33]} {[%emt 00:00:15]} 9. exf4
{[%clk 00:13:16]} {[%emt 00:01:10]} Ne4 {[%clk 00:12:39]} {[%emt 00:00:58]} 10.
Qe5+ {[%clk 00:13:18]} {[%emt 00:00:03]} Qe7 {[%clk 00:10:27]} {[%emt
00:02:16]} 11. d3 {[%clk 00:11:56]} {[%emt 00:01:28]} Nf6 {[%clk 00:09:14]}
{[%emt 00:01:17]} 12. Nc3 {[%clk 00:11:42]} {[%emt 00:00:20]} Nc6 {[%clk
00:09:03]} {[%emt 00:00:17]} 13. Qxe7+ {[%clk 00:11:17]} {[%emt 00:00:30]} Bxe7
{[%clk 00:09:06]} {[%emt 00:00:02]} 14. Bd2 {[%clk 00:10:34]} {[%emt 00:00:49]}
O-O {[%clk 00:08:32]} {[%emt 00:00:38]} 15. O-O-O {[%clk 00:10:36]} {[%emt
00:00:02]} a6 {[%clk 00:08:22]} {[%emt 00:00:16]} 16. Rde1 {[%clk 00:10:04]}
{[%emt 00:00:36]} Rfe8 {[%clk 00:08:22]} {[%emt 00:00:06]} 17. h3 {[%clk
00:09:21]} {[%emt 00:00:47]} b5 {[%clk 00:07:31]} {[%emt 00:00:57]} 18. g4
{[%clk 00:09:01]} {[%emt 00:00:25]} Bd6 {[%clk 00:07:25]} {[%emt 00:00:10]} 19.
g5 {[%clk 00:08:42]} {[%emt 00:00:25]} Nh5 {[%clk 00:07:20]} {[%emt 00:00:10]}
20. Nxd5 {[%clk 00:08:05]} {[%emt 00:00:42]} Ng3 {[%clk 00:06:59]} {[%emt
00:00:26]} 21. Rxe8+ {[%clk 00:08:02]} {[%emt 00:00:08]} Rxe8 {[%clk 00:07:02]}
{[%emt 00:00:02]} 22. Re1 {[%clk 00:07:55]} {[%emt 00:00:10]} Rxe1+ {[%clk
00:06:43]} {[%emt 00:00:25]} 23. Nxe1 {[%clk 00:07:41]} {[%emt 00:00:20]} Ne2+
{[%clk 00:06:36]} {[%emt 00:00:12]} 24. Kd1 {[%clk 00:07:30]} {[%emt 00:00:15]}
Ng1 {[%clk 00:06:07]} {[%emt 00:00:34]} 25. h4 {[%clk 00:07:20]} {[%emt
00:00:16]} Nd4 {[%clk 00:05:51]} {[%emt 00:00:21]} 26. Be3 {[%clk 00:06:47]}
{[%emt 00:00:36]} Ngf3 {[%clk 00:05:31]} {[%emt 00:00:26]} 27. Nxf3 {[%clk
00:06:19]} {[%emt 00:00:33]} Nxf3 {[%clk 00:05:33]} {[%emt 00:00:03]} 28. Bf2
{[%clk 00:06:15]} {[%emt 00:00:09]} Nh2 {[%clk 00:04:26]} {[%emt 00:01:13]} 29.
c4 {[%clk 00:06:17]} {[%emt 00:00:03]} Ng4 {[%clk 00:04:19]} {[%emt 00:00:12]}
30. Ke2 {[%clk 00:06:20]} bxc4 {[%clk 00:04:19]} {[%emt 00:00:06]} 31. dxc4
{[%clk 00:06:20]} {[%emt 00:00:05]} Nxf2 {[%clk 00:04:14]} {[%emt 00:00:10]} 32.
Kxf2 {[%clk 00:06:23]} {[%emt 00:00:02]} Bc5+ {[%clk 00:04:18]} {[%emt
00:00:01]} 33. Kf3 {[%clk 00:06:25]} {[%emt 00:00:03]} Kf8 {[%clk 00:04:22]} 34.
b4 {[%clk 00:06:29]} {[%emt 00:00:01]} Bd4 {[%clk 00:04:18]} {[%emt 00:00:09]}
35. c5 {[%clk 00:06:04]} {[%emt 00:00:30]} a5 {[%clk 00:04:00]} {[%emt
00:00:23]} 36. Ke4 {[%clk 00:05:16]} {[%emt 00:00:53]} Bf2 {[%clk 00:03:56]}
{[%emt 00:00:09]} 37. a3 {[%clk 00:04:57]} {[%emt 00:00:24]} axb4 {[%clk
00:03:52]} {[%emt 00:00:09]} 38. axb4 {[%clk 00:05:01]} {[%emt 00:00:01]} Ke8
{[%clk 00:03:50]} {[%emt 00:00:07]} 39. h5 {[%clk 00:04:56]} {[%emt 00:00:10]}
Kd7 {[%clk 00:03:53]} {[%emt 00:00:02]} 40. Kd3 {[%clk 00:04:32]} {[%emt
00:00:28]} h6 {[%clk 00:03:37]} {[%emt 00:00:22]} 41. gxh6 {[%clk 00:04:33]}
{[%emt 00:00:05]} gxh6 {[%clk 00:03:41]} 42. Kc4 {[%clk 00:04:34]} {[%emt
00:00:03]} f5 {[%clk 00:03:38]} {[%emt 00:00:08]} 43. b5 {[%clk 00:04:32]}
{[%emt 00:00:07]} Bg3 {[%clk 00:03:38]} {[%emt 00:00:06]} 44. c6+ {[%clk
00:03:58]} {[%emt 00:00:37]} Kd6 {[%clk 00:03:35]} {[%emt 00:00:08]} 45. c7
{[%clk 00:03:59]} {[%emt 00:00:04]} Kd7 {[%clk 00:03:38]} {[%emt 00:00:03]} 46.
b6 {[%clk 00:04:00]} {[%emt 00:00:03]} Kc8 {[%clk 00:03:33]} {[%emt 00:00:10]}
47. Ne7+ {[%clk 00:03:49]} {[%emt 00:00:17]} Kd7 {[%clk 00:03:28]} {[%emt
00:00:10]} 48. c8=Q+ {[%clk 00:03:50]} {[%emt 00:00:04]} Kxe7 {[%clk 00:03:30]}
{[%emt 00:00:03]} 49. Qxf5 {[%clk 00:03:51]} {[%emt 00:00:03]} Kd6 {[%clk
00:03:32]} {[%emt 00:00:03]} 50. Qd3+ {[%clk 00:03:45]} {[%emt 00:00:11]} Kc6
{[%clk 00:03:35]} {[%emt 00:00:03]} 51. Qxg3 {[%clk 00:03:43]} {[%emt
00:00:07]} Kxb6 {[%clk 00:03:38]} {[%emt 00:00:03]} 52. Qg6+ {[%clk 00:03:44]}
{[%emt 00:00:02]} Kc7 {[%clk 00:03:42]} {[%emt 00:00:02]} 53. Kc5 {[%clk
00:03:46]} {[%emt 00:00:02]} Kd7 {[%clk 00:03:46]} {[%emt 00:00:02]} 54. Qf7+
{[%clk 00:03:49]} {[%emt 00:00:02]} Kd8 {[%clk 00:03:50]} {[%emt 00:00:01]} 55.
Kc6 {[%clk 00:03:51]} {[%emt 00:00:02]} Kc8 {[%clk 00:03:54]} {[%emt 00:00:02]}
56. Qg8# {[%clk 00:03:46]} 1-0